fUSD/lending_fUSD_20240527
["ID","MTS","AMOUNT","RATE_DAILY","PERIOD"]
[328065158,1716829831964,-300.0,0.00027537,2]
[328065159,1716829831973,-200.0,0.00027538,2]
[328065160,1716829831982,-238.38,0.00027605,2]
[328065161,1716829831992,-332.8536581,0.00028169,2]
[328065162,1716829832001,-332.8536581,0.00028237,2]
[328065163,1716829832010,-300.0,0.00028262,2]
[328065164,1716829832019,-151.13528159,0.00028286,2]
[328065165,1716829832030,-151.13528159,0.00028291,2]
[328065166,1716829832039,-332.8536581,0.00028494,2]
[328065167,1716829832050,-300.0,0.00028986,2]
[328065168,1716829832059,-151.13528161,0.00029041,2]
[328065169,1716829832068,-332.8536581,0.00029105,2]
[328065170,1716829832077,-332.8536581,0.00029301,2]
[328065171,1716829832087,-332.8536581,0.00029492,2]
[328065172,1716829832098,-300.0,0.00029711,2]
[328065173,1716829832107,-154.4661984,0.00029712,2]
[328065174,1716829832117,-666.09214671,0.0002975,2]
[328065175,1716829832127,-176.52168983,0.00029751,2]
[328065176,1716829832138,-195.15659867,0.00029751,2]
[328065177,1716829832148,-332.8536581,0.00029754,2]
[328065178,1716829832158,-238.38,0.00029869,2]
[328065179,1716829832170,-154.2259888,0.00029877,2]
[328065180,1716829832179,-4688.05,0.0003,4]
[328065181,1716829832188,-3779.59190621,0.00030259,2]
[328065182,1716829832197,-332.8536581,0.00030267,7]
[328065183,1716829832206,-332.8536581,0.0003029,7]
[328065184,1716829832217,-332.8536581,0.00030345,7]
[328065185,1716829832227,-332.8536581,0.00030421,7]
[328065186,1716829832236,-428.73235475,0.00030436,2]
[328065187,1716829832245,-151.26,0.00030575,2]
[328065188,1716829832255,-1467.0,0.00030759,2]
[328065189,1716829832264,-5139.0,0.00030759,2]
[328065190,1716829832273,-289.0,0.00030759,2]
[328065191,1716829832282,-5765.0,0.00030759,2]
[328065192,1716829832293,-37936.0,0.00030759,2]
[328065193,1716829832301,-9147.77310504,0.00030834,2]
[328065194,1716829832311,-154.4661984,0.00030904,7]
[328065195,1716829832320,-524.71,0.00031068,2]
[328065196,1716829832329,-524.71,0.00031068,2]
[328065197,1716829832339,-524.71,0.00031068,2]
[328065198,1716829832348,-524.71,0.00031068,2]
[328065199,1716829832357,-524.71,0.00031068,2]
[328065200,1716829832367,-524.71,0.00031068,2]
[328065201,1716829832376,-524.71,0.00031068,2]
[328065202,1716829832385,-524.71,0.00031068,2]
[328065203,1716829832394,-524.71,0.00031068,2]
[328065204,1716829832404,-524.71,0.00031068,2]
[328065205,1716829832414,-524.71,0.00031068,2]
[328065206,1716829832423,-524.71,0.00031068,2]
[328065207,1716829832432,-524.71,0.00031068,2]
[328065208,1716829832441,-524.71,0.00031068,2]
[328065209,1716829832451,-524.71,0.00031068,2]
[328065210,1716829832460,-524.71,0.00031068,2]
[328065211,1716829832470,-524.71,0.00031068,2]
[328065212,1716829832479,-524.71,0.00031068,2]
[328065213,1716829832489,-524.71,0.00031068,2]
[328065214,1716829832498,-524.71,0.00031068,2]
[328065215,1716829832507,-524.71,0.00031068,2]
[328065216,1716829832516,-524.71,0.00031068,2]
[328065217,1716829832526,-524.71,0.00031068,2]
[328065218,1716829832535,-166.66666665,0.00031186,7]
[328065219,1716829832545,-976.0749,0.000313,2]
[328065220,1716829832554,-11136.17162709,0.000313,10]
[328065221,1716829832563,-996.50402953,0.000313,10]
[328065222,1716829832572,-329.13,0.0003139,10]
[328065223,1716829832582,-274.28,0.0003139,10]
[328065224,1716829832591,-68778.33885807,0.000314,2]
[328065225,1716829832603,-448.74875887,0.000314,2]
[328065226,1716829832622,-1013.022,0.000314,2]
[328065227,1716829832633,-2787.80381638,0.000314,2]
[328065228,1716829832645,-600.0,0.000314,2]
[328065229,1716829832656,-999.6,0.000314,2]
[328065230,1716829832667,-255.97559429,0.000314,2]
[328065231,1716829832682,-2095.84322377,0.000314,2]
[328065232,1716829832694,-379.13158636,0.000314,2]
[328065233,1716829832705,-25438.62218657,0.000314,2]
[328065234,1716829832716,-5854.54607569,0.000314,2]
[328065235,1716829832726,-1030.65647578,0.000314,3]
[328065236,1716829832735,-157.24090473,0.000314,2]
[328065237,1716829832745,-173.84041978,0.000314,3]
[328065238,1716829832754,-220.61243851,0.000314,3]
[328065239,1716829832762,-11853.0413023,0.000314,3]
[328065240,1716829832772,-150.0,0.000314,7]
[328065241,1716829832781,-13861.3887768,0.00031486,2]
[328065242,1716829832790,-151.0,0.0003149,2]
[328065243,1716829832800,-151.0,0.0003149,2]
[328065244,1716829832809,-151.0,0.0003149,2]
[328065245,1716829832819,-151.0,0.0003149,2]
[328065246,1716829832828,-151.0,0.0003149,2]
[328065247,1716829832837,-151.0,0.0003149,2]
[328065248,1716829832846,-186.30763535,0.00031496,2]
[328065249,1716829832856,-5879.33171453,0.00031496,2]
[328065250,1716829832866,-3000.0,0.00031497,2]
[328065251,1716829832875,-258.79795646,0.00031498,4]
[328065252,1716829832884,-198.413408,0.00031499,4]
[328065253,1716829832894,-500.0,0.00031499,2]
[328065254,1716829832903,-500.0,0.00031499,2]
[328065255,1716829832912,-309.76675448,0.00031499,2]
[328065256,1716829832921,-500.0,0.00031499,2]
[328065257,1716829832930,-500.0,0.00031499,2]
[328065258,1716829832940,-550.36665456,0.00031499,2]
[328065259,1716829832949,-500.0,0.00031499,2]
[328065260,1716829832960,-500.0,0.00031499,2]
[328065261,1716829832970,-500.0,0.00031499,2]
[328065262,1716829832980,-306.15149828,0.00031499,2]
[328065263,1716829832989,-500.0,0.00031499,2]
[328065264,1716829832999,-500.0,0.00031499,2]
[328065265,1716829833009,-500.0,0.00031499,2]
[328065266,1716829833019,-500.0,0.00031499,2]
[328065267,1716829833028,-500.0,0.00031499,2]
[328065268,1716829833040,-500.0,0.00031499,2]
[328065269,1716829833052,-500.0,0.00031499,2]
[328065270,1716829833062,-215.29162921,0.00031499,2]
[328065271,1716829833071,-202.24725266,0.00031499,2]
[328065272,1716829833081,-165275.65346745,0.000315,5]
[328065273,1716829833092,-804.43551989,0.000315,5]
[328065274,1716829833104,-334.50747262,0.000315,5]
[328065277,1716829837549,-285.16752134,0.00030758,4]
[328065278,1716829837559,-1061.0,0.00030759,2]
[328065279,1716829837569,-228.56,0.0003129,10]
[328065280,1716829837579,-14425.63279866,0.000315,5]
[328065281,1716829837623,-346158.4407941,0.000315,5]
[328065282,1716829837690,-645.95,0.000315,5]
[328065283,1716829837702,-527.54722443,0.000315,5]
[328065284,1716829837753,-1252.14149906,0.000315,5]
[328065285,1716829837765,-2848.98793563,0.000315,5]
[328065286,1716829837776,-467.07335592,0.000315,5]
[328065287,1716829837787,-2440.62941193,0.000315,5]
[328065288,1716829837799,-75996.68421868,0.000315,5]
[328065289,1716829837818,-630.32,0.000315,5]
[328065290,1716829837829,-67700.0,0.000315,5]
[328065291,1716829837840,-753.50015,0.000315,5]
[328065292,1716829837851,-1839.95400509,0.000315,5]
[328065293,1716829837886,-815.97194268,0.000315,5]
[328065535,1716829840216,-150.01,0.00031498,2]
[328065537,1716829840225,-2899.75858233,0.00031498,2]
[328065539,1716829840238,-1997.2030818,0.00031498,2]
[328065541,1716829840251,-693.96821136,0.00031498,2]
[328065542,1716829840859,-288.40183904,0.00031498,2]
[328065543,1716829840869,-11.59816096,0.000315,11]
[328065544,1716829840881,-306.03178864,0.000315,11]
[328065545,1716829841088,-3797.99999996,0.000315,11]
[328065546,1716829841126,-2483.34596549,0.000315,11]
[328065606,1716829842825,-702.22,0.000315,11]
[328065607,1716829842837,-145884.94104217,0.000315,11]
[328065608,1716829842847,-3730.7500918,0.000315,11]
[328065609,1716829842858,-11449.12401771,0.000315,11]
[328065610,1716829842868,-353.74932503,0.000315,11]
[328065611,1716829842896,-1214.4661918,0.000315,11]
[328065612,1716829842909,-1943.92700177,0.000315,11]
[328065613,1716829842970,-24360.63596901,0.000315,11]
[328065614,1716829842981,-81117.96152508,0.000315,5]
[328065616,1716829845111,156.84,0.00030941,120]
[328065638,1716829848292,-202.62,0.00028754,2]
[328065639,1716829848302,-595.02413112,0.00030757,4]
[328065640,1716829848313,-182.35586888,0.0003149,10]
[328065641,1716829848325,-8.11413112,0.0003149,10]
[328065642,1716829848335,-159.90645151,0.00031497,4]
[328065643,1716829848345,-222.08939345,0.00031497,4]
[328065644,1716829848354,-886.86936652,0.00031498,4]
[328065645,1716829848364,-428.66255048,0.00031498,4]
[328065646,1716829848374,-150.01,0.00031498,2]
[328065647,1716829848384,-1427.58700395,0.00031498,2]
[328065648,1716829848394,-662.76110298,0.000315,5]
[328065649,1716829848405,-24744.732786,0.000315,5]
[328065650,1716829848429,-70216.0,0.000315,5]
[328065651,1716830841223,-154.52979959,0.00016994,2]
[328065652,1716830841242,-195.26054352,0.00017093,2]
[328065653,1716830841261,-2113.09928165,0.00017094,2]
[328065654,1716830998015,159.52,0.00013973,2]
[328065661,1716831031788,-155.0,0.00016979,2]
[328065662,1716831031798,-155.0,0.00016979,2]
[328065663,1716831031809,-138.12958754,0.00016979,2]
[328065664,1716831031822,-2050.813127,0.00016979,2]
[328065665,1716831031832,-406.54724028,0.0001698,2]
[328065666,1716831031841,-1228.26740172,0.00016981,2]
[328065667,1716831031851,-878.0,0.00016982,2]
[328065668,1716831031861,-327.17160998,0.00016982,2]
[328065669,1716831031871,-2559.59481465,0.00016982,2]
[328065670,1716831031883,-689.30241408,0.00016982,2]
[328065671,1716831031895,-900.37502554,0.00016982,2]
[328065672,1716831031907,-696.77431602,0.00016982,2]
[328065673,1716831031919,-452.75892829,0.00016982,2]
[328065674,1716831031930,-650.01339646,0.00016982,2]
[328065675,1716831031954,-765.29022052,0.00016982,2]
[328065676,1716831031965,-4236.3198775,0.00016982,2]
[328065677,1716831031975,-1535.34582434,0.00016987,2]
[328065678,1716831031984,-393.36599293,0.00017094,2]
[328065679,1716831031994,-534.9432489,0.00017096,2]
[328065680,1716831032003,-1000.0,0.00018,2]
[328065681,1716831032012,-154.52979958,0.00019362,2]
[328065682,1716831032022,-4093.10461499,0.00019451,2]
[328065683,1716831032031,-154.52979958,0.00021729,2]
[328065684,1716831032040,-154.52979958,0.00024097,2]
[328065685,1716831032050,-152.55792663,0.00024692,2]
[328065686,1716831032059,-152.55792663,0.00024752,2]
[328065687,1716831032070,-152.55792663,0.00024782,2]
[328065688,1716831032079,-192.48,0.00024921,2]
[328065689,1716831032089,-154.4661984,0.00025172,2]
[328065690,1716831032098,-167.32,0.00025938,2]
[328065691,1716831032107,-250.0,0.00026057,2]
[328065692,1716831032117,-152.41317284,0.00026104,2]
[328065693,1716831032126,-152.41317284,0.00026106,2]
[328065694,1716831032137,-156.84,0.00026288,2]
[328065695,1716831032147,-200.0,0.00026295,2]
[328065696,1716831032161,-152.55792663,0.00026427,2]
[328065697,1716831032171,-154.52979958,0.00026465,2]
[328065698,1716831032181,-250.0,0.00026621,2]
[328065699,1716831032192,-167.0,0.00026722,2]
[328065700,1716831032203,-152.55792663,0.00026732,2]
[328065702,1716831032212,-154.22598882,0.00026738,2]
[328065704,1716831032221,-152.55792663,0.00026928,2]
[328065705,1716831032232,-192.48,0.00027185,2]
[328065706,1716831032242,-152.55792663,0.00027479,2]
[328065707,1716831032252,-152.55792663,0.00027589,2]
[328065708,1716831032262,-152.41317285,0.00027728,2]
[328065709,1716831032272,-152.55792663,0.00028047,2]
[328065710,1716831032282,-152.55792663,0.00028382,2]
[328065711,1716831032291,-152.55792663,0.00028636,2]
[328065712,1716831032302,-154.52979958,0.00028832,2]
[328065713,1716831032313,-152.55792663,0.00029327,2]
[328065714,1716831032326,-159.52,0.00029349,2]
[328065715,1716831032335,-192.48,0.00029449,2]
[328065716,1716831032345,-152.55792663,0.00029536,2]
[328065717,1716831032354,-152.55792663,0.0002985,2]
[328065718,1716831032364,-260.0,0.0003,14]
[328065719,1716831032374,-152.55792663,0.00030013,7]
[328065720,1716831032384,-524.71,0.00030247,2]
[328065721,1716831032394,-524.71,0.00030247,2]
[328065722,1716831032403,-524.71,0.00030247,2]
[328065723,1716831032412,-524.71,0.00030278,2]
[328065724,1716831032422,-1500.0,0.000305,6]
[328065725,1716831032432,-166.18682385,0.0003057,7]
[328065726,1716831032442,-524.71,0.00030575,2]
[328065727,1716831032451,-524.71,0.00030575,2]
[328065728,1716831032461,-524.71,0.00030575,2]
[328065729,1716831032471,-524.71,0.00030575,2]
[328065730,1716831032480,-524.71,0.00030678,2]
[328065731,1716831032490,-415.25,0.00030767,2]
[328065732,1716831032499,-421.33,0.00030849,2]
[328065733,1716831032509,-421.33,0.00030849,2]
[328065734,1716831032519,-1500.0,0.00031,6]
[328065735,1716831032528,-10022.55446439,0.000311,10]
[328065736,1716831032538,-152.55792663,0.0003114,7]
[328065737,1716831032548,-3000.0,0.0003118,2]
[328065738,1716831032558,-793.65,0.0003119,10]
[328065739,1716831032572,-158.72,0.0003119,10]
[328065740,1716831032582,-1257.70181696,0.00031198,4]
[328065741,1716831032591,-160.17360133,0.00031198,4]
[328065742,1716831032603,-583.00620659,0.00031198,4]
[328065743,1716831032618,-1577.91907871,0.00031198,4]
[328065744,1716831032627,-5278.19112866,0.00031199,2]
[328065745,1716831032637,-47387.2313,0.000312,2]
[328065746,1716831032649,-500.0,0.000312,2]
[328065747,1716831032659,-160.6149,0.000312,2]
[328065748,1716831032669,-1069.1069,0.000312,2]
[328065749,1716831032679,-1000.0,0.000312,2]
[328065750,1716831032688,-7500.0,0.000312,2]
[328065751,1716831032698,-2558.6479,0.000312,2]
[328065752,1716831032708,-1000.0,0.000312,2]
[328065753,1716831032717,-94284.39962713,0.000312,7]
[328065754,1716831032754,-3071.91999903,0.000312,7]
[328065755,1716831032766,-2499.33301702,0.000312,7]
[328065756,1716831032777,-286.18192272,0.000312,7]
[328065757,1716831032790,-434.33736611,0.000312,7]
[328065758,1716831032801,-1295.95865689,0.000312,7]
[328065759,1716831032813,-1011.27340961,0.000312,7]
[328065760,1716831032826,-4698.92261733,0.000312,7]
[328065761,1716831032841,-621.28822806,0.000312,7]
[328065762,1716831032853,-387.51100691,0.000312,7]
[328065763,1716831032864,-48050.85934868,0.000312,7]
[328065764,1716831032875,-1219.53948237,0.000312,7]
[328065767,1716831038825,-527.15324438,0.000312,7]
[328065768,1716831038973,-2992.82671631,0.000312,7]
[328065769,1716831038985,-8308.21690001,0.000312,7]
[328065770,1716831038997,-19032.20735744,0.000312,7]
[328065771,1716831039006,-228.95669532,0.000312,2]
[328065772,1716831039016,-896.85362655,0.000312,10]
[328065773,1716831039025,-154.52979958,0.000312,2]
[328065774,1716831039035,-14028.95252111,0.000313,2]
[328065775,1716831039047,-1463.083946,0.000313,2]
[328065776,1716831039060,-1579.63459866,0.000313,2]
[328065777,1716831039114,-473.3383626,0.000313,2]
[328065778,1716831039126,-4020.5667879,0.000313,2]
[328065779,1716831039139,-977.69249947,0.000313,2]
[328065780,1716831039152,-708.7166173,0.000313,2]
[328065781,1716831039164,-7877.4,0.000313,2]
[328065829,1716831040761,-681.22282,0.000313,2]
[328065830,1716831041475,-382.54574006,0.000313,2]
[328065831,1716831041611,-7543.28006216,0.000313,2]
[328065832,1716831041623,-1431.61017,0.000313,2]
[328065839,1716831042902,-701.11,0.000313,2]
[328065841,1716831042914,-22046.57909511,0.000313,2]
[328065844,1716831043042,-2092.84482702,0.000313,2]
[328065845,1716831043053,-1567.81108375,0.000313,2]
[328065846,1716831043064,-22106.71070566,0.000313,2]
[328065847,1716831043168,-327.02252959,0.00031299,4]
[328065848,1716831043178,-4039.81920379,0.000313,2]
[328065849,1716831043189,-2132.41907185,0.000313,2]
[328065850,1716831043290,-4144.66188756,0.000313,2]
[328065852,1716831043300,-10417.26362675,0.000313,2]
[328065943,1716831045366,262.24399529,0.00013973,2]
[328065954,1716831045913,-524.71,0.000312,2]
[328065955,1716831045924,-273.01392063,0.00031298,4]
[328065956,1716831045935,-405.31155357,0.00031298,4]
[328065957,1716831045946,-4640.61846616,0.00031299,4]
[328065958,1716831045959,-318.36629838,0.00031299,4]
[328065959,1716831046064,-351.16,0.00031299,4]
[328065960,1716831046077,-9402.52374821,0.00031299,4]
[328065961,1716831046088,-60763.47625175,0.000313,2]
[328065962,1716831046101,-1889.42,0.000313,2]
[328065963,1716831046403,-615.29535354,0.000313,2]
[328066011,1716831054688,299.11276263,0.00013973,2]
[328066012,1716831056962,2663.45100477,0.00013973,2]
[328066013,1716831060028,25665.23730462,0.00013973,2]
[328066014,1716831060049,23384.85315844,0.00013973,2]
[328066015,1716831061161,218.53666274,0.00013973,2]
[328066016,1716831083178,218.53666274,0.00013973,2]
[328066017,1716831097108,155.0,0.00013973,2]
[328066018,1716831117240,155.0,0.00013973,2]
[328066019,1716831137122,155.0,0.00013973,2]
[328066020,1716831159129,155.0,0.00013973,2]
[328066021,1716831177130,155.0,0.00013973,2]
[328066023,1716831195132,155.0,0.00013973,2]
[328066024,1716831213141,162.68331371,0.00013973,2]
[328066025,1716831224494,949261.31986685,0.00013,2]
[328066027,1716831479672,153.3,0.00013973,2]
[328066028,1716832050169,-241.16448165,0.00017212,2]
[328066030,1716832232095,-624.30333556,0.00017204,2]
[328066032,1716832232105,-155.0,0.00017205,2]
[328066034,1716832232114,-687.05440873,0.00017206,2]
[328066036,1716832232124,-1180.82312836,0.00017206,2]
[328066038,1716832232133,-708.0,0.00017208,2]
[328066040,1716832232142,-662.0,0.00017209,2]
[328066042,1716832232151,-904.93813181,0.00017215,2]
[328066045,1716832232163,-34.17157415,0.00017215,2]
[328066047,1716832232171,-395.70267775,0.00017215,2]
[328066049,1716832232182,-185.70096708,0.00017215,2]
[328066050,1716832232192,-790.58989942,0.00017243,2]
[328066051,1716832232201,-150.0,0.00017259,2]
[328066052,1716832232210,-209.95647287,0.00017533,2]
[328066053,1716832232221,-8200.95825374,0.00017534,2]
[328066054,1716832232233,-735.85174626,0.00017534,2]
[328066055,1716832232242,-1790.00464579,0.00017999,2]
[328066056,1716832232251,-2132.50750441,0.00018,2]
[328066057,1716832232260,-499.99,0.00018,2]
[328066058,1716832232270,-3330.0,0.000182,2]
[328066059,1716832232279,-410.74423217,0.00019,2]
[328066060,1716832232288,-3884.49365683,0.000192,2]
[328066061,1716832232298,-163.6,0.00024298,2]
[328066062,1716832232307,-1050.0,0.00025,2]
[328066063,1716832232316,-152.55792665,0.00025205,2]
[328066064,1716832232325,-151.23335645,0.00025223,2]
[328066065,1716832232335,-153.80355814,0.00025575,2]
[328066068,1716832232444,-155.249193,0.00025769,2]
[328066069,1716832232455,-1528.47,0.00026104,2]
[328066070,1716832232464,-250.0,0.00026185,2]
[328066071,1716832232474,-1273.29312083,0.00026188,2]
[328066072,1716832232485,-6.85687917,0.00026188,2]
[328066073,1716832232495,-1273.9,0.00026234,2]
[328066074,1716832232503,-912.78,0.00026249,2]
[328066075,1716832232512,-206.66,0.00026262,2]
[328066076,1716832232522,-159.08274939,0.00026283,2]
[328066077,1716832232531,-200.0,0.00026286,2]
[328066078,1716832232540,-2000.0,0.00026396,2]
[328066079,1716832232549,-1852.42,0.00026445,2]
[328066080,1716832232558,-156.84,0.00026448,2]
[328066081,1716832232567,-154.03762695,0.00026451,2]
[328066082,1716832232576,-250.0,0.00026499,2]
[328066083,1716832232585,-163.6,0.00026562,2]
[328066084,1716832232594,-390.5,0.00026617,2]
[328066085,1716832232603,-1100.0,0.00027,2]
[328066086,1716832232612,-250.0,0.00027089,2]
[328066087,1716832232621,-258.69,0.00027196,2]
[328066088,1716832232630,-708.54,0.00027236,2]
[328066089,1716832232640,-258.69,0.00027268,2]
[328066090,1716832232649,-258.69,0.0002734,2]
[328066091,1716832232658,-258.69,0.00027412,2]
[328066092,1716832232667,-1299.85,0.00027413,2]
[328066093,1716832232675,-209.84,0.00027466,2]
[328066094,1716832232685,-51.86761706,0.00027477,2]
[328066095,1716832232736,-1356.47305765,0.00027477,2]
[328066096,1716832232748,-789.65,0.00027477,2]
[328066097,1716832232794,-126.77932529,0.00027477,2]
[328066098,1716832232804,-258.69,0.00027484,2]
[328066099,1716832232813,-600.0,0.00027507,2]
[328066100,1716832232823,-258.69,0.00027556,2]
[328066101,1716832232832,-258.69,0.00027629,2]
[328066102,1716832232843,-15160.56900528,0.00027692,2]
[328066103,1716832232854,-857.74670121,0.00027692,2]
[328066104,1716832232865,-7871.68429351,0.00027692,2]
[328066105,1716832232874,-153.81783556,0.0002795,2]
[328066106,1716832232884,-152.55792665,0.00028111,2]
[328066107,1716832232893,-200.0,0.00028116,2]
[328066108,1716832232904,-423.7807094,0.00028168,2]
[328066109,1716832232913,-167.01,0.00028238,2]
[328066110,1716832232923,-153.80355814,0.00028423,2]
[328066111,1716832232932,-150.0,0.00028599,2]
[328066112,1716832232942,-152.55792665,0.00028824,2]
[328066113,1716832232955,-86.02392106,0.00028826,2]
[328066114,1716832232967,-77.57607894,0.00028826,2]
[328066115,1716832232976,-152.55792665,0.00028832,2]
[328066116,1716832232987,-762.34999441,0.00028974,2]
[328066117,1716832232998,-511.55000559,0.00028974,2]
[328066118,1716832233007,-154.12115709,0.00029305,2]
[328066119,1716832233016,-524.71,0.00029753,2]
[328066120,1716832233028,-524.71,0.00029753,2]
[328066121,1716832233037,-524.71,0.00029753,2]
[328066122,1716832233047,-524.71,0.00029753,2]
[328066123,1716832233065,-524.71,0.00029753,2]
[328066124,1716832233084,-524.71,0.00029753,2]
[328066125,1716832233103,-524.71,0.00029753,2]
[328066126,1716832233122,-524.71,0.00029753,2]
[328066127,1716832233144,-153.80355814,0.00029913,2]
[328066128,1716832233160,-150.0,0.00029968,2]
[328066129,1716832233178,-607.04697767,0.0003,2]
[328066130,1716832233193,-1141.0,0.000301,2]
[328066131,1716832233210,-532.99430151,0.00030247,2]
[328066132,1716832233232,-467.00569849,0.00030247,2]
[328066133,1716832233251,-604.31860488,0.00030247,2]
[328066134,1716832233266,-395.68139512,0.00030247,2]
[328066135,1716832233284,-433.90920725,0.00030247,2]
[328066140,1716832238347,-155.0,0.00019199,2]
[328066141,1716832238356,-194.01,0.00026317,2]
[328066142,1716832238365,-194.01,0.00026389,2]
[328066143,1716832238374,-194.01,0.00026461,2]
[328066144,1716832238383,-194.01,0.00026533,2]
[328066145,1716832238393,-194.01,0.00026605,2]
[328066146,1716832238402,-194.01,0.00026678,2]
[328066147,1716832238411,-194.01,0.0002675,2]
[328066148,1716832238421,-194.01,0.00026822,2]
[328066149,1716832238429,-41.43356788,0.00026894,2]
[328066150,1716832238441,-152.57643212,0.00026894,2]
[328066151,1716832238450,-194.01,0.00026966,2]
[328066152,1716832238459,-194.01,0.00027038,2]
[328066153,1716832238468,-194.01,0.00027111,2]
[328066154,1716832238478,-194.01,0.00027183,2]
[328066157,1716832238487,-112.7518718,0.00027255,2]
[328066164,1716832241496,-81.2581282,0.00027255,2]
[328066165,1716832241507,-194.01,0.00027327,2]
[328066166,1716832241517,-144.5516318,0.00027399,2]
[328066168,1716832241530,-49.4583682,0.00027399,2]
[328066170,1716832241539,-194.01,0.00027471,2]
[328066171,1716832241550,-128.09079275,0.00030247,2]
[328066172,1716832241560,-416.91463905,0.00030575,2]
[328066173,1716832241629,-107.79536095,0.00030575,2]
[328066174,1716832241638,-524.71,0.00030575,2]
[328066175,1716832241649,-524.53,0.00030575,2]
[328066176,1716832241659,-150.0,0.00030575,2]
[328066177,1716832241669,-150.0,0.00030575,2]
[328066178,1716832241679,-150.0,0.00030575,2]
[328066179,1716832241689,-152.55792665,0.00030827,7]
[328066180,1716832241698,-150.0,0.00030849,7]
[328066181,1716832241707,-800.0,0.000309,11]
[328066182,1716832241717,-600.0,0.00030945,2]
[328066183,1716832241727,-753.9942,0.00030998,2]
[328066184,1716832241737,-163.6,0.0003109,2]
[328066185,1716832241747,-667.0224,0.00031098,2]
[328066186,1716832241758,-6936.70471245,0.00031098,2]
[328066187,1716832242490,-261.01308339,0.00031098,2]
[328066188,1716832242690,-302.28220416,0.00031098,2]
[328066189,1716832242714,-1317.27691272,0.00031098,10]
[328066190,1716832242726,-573.1009605,0.00031098,10]
[328066191,1716832242737,-2474.95284778,0.00031098,10]
[328066192,1716832242761,-4654.96829696,0.00031098,10]
[328066194,1716832242770,-196.86001027,0.00031098,2]
[328066195,1716832242779,-2908.03297253,0.00031098,10]
[328066197,1716832242788,-858.5829,0.000311,2]
[328066199,1716832242798,-150.0,0.00031123,2]
[328066201,1716832242807,-150.0,0.00031123,2]
[328066203,1716832242816,-300.0,0.00031123,2]
[328066205,1716832242826,-663.76,0.00031173,3]
[328066207,1716832242835,-500.0,0.00031181,2]
[328066209,1716832242846,-200.0,0.00031181,2]
[328066211,1716832242855,-152.55792665,0.00031183,7]
[328066212,1716832242865,-245000.0,0.00031198,2]
[328066214,1716832242875,-38190.1845,0.00031198,2]
[328066216,1716832242884,-500.0,0.000312,2]
[328066218,1716832242894,-100000.0,0.000312,2]
[328066220,1716832242903,-1000.0,0.000312,2]
[328066223,1716832242913,-6034.6408828,0.000312,2]
[328066225,1716832242926,-3898.42388469,0.000312,2]
[328066227,1716832243192,-1104.73378901,0.000312,2]
[328066229,1716832243205,-888.50000003,0.000312,2]
[328066232,1716832243216,-325.77284663,0.000312,2]
[328066236,1716832243339,-519.0819733,0.000312,2]
[328066237,1716832243350,-294.14994472,0.000312,2]
[328066238,1716832243361,-1150.56133882,0.000312,2]
[328066239,1716832244342,-1882.00994,0.000312,2]
[328066241,1716832244355,-3716.0142,0.000312,2]
[328066243,1716832244366,-164.67758827,0.000312,2]
[328066245,1716832244376,-156.02513887,0.00031219,7]
[328066247,1716832244386,-500.0,0.00031246,2]
[328066249,1716832244396,-200.0,0.00031246,2]
[328066251,1716832244405,-2390.53914722,0.00031298,4]
[328066253,1716832244415,-280.38960139,0.00031298,4]
[328066255,1716832244424,-1833.07543501,0.00031298,4]
[328066256,1716832244436,-534.64124782,0.00031298,4]
[328066257,1716832244446,-155.0,0.00031298,4]
[328066258,1716832244455,-9036.69731584,0.00031298,4]